[Event "Baltic Zonal III Stage 2018"]
[Site "Liepaja"]
[Date "2018.07.13"]
[Round "7"]
[White "Haavamae, Henrik"]
[Black "Chukavin, Kirill"]
[Result "1/2-1/2"]
[ECO "B81"]
[WhiteElo "2185"]
[BlackElo "2303"]
[Annotator "NA"]
[PlyCount "134"]
[EventDate "2018.07.09"]
[EventType "swiss"]
[EventCountry "LAT"]
[SourceTitle "playchess.com"]
[Source "ChessBase"]
[SourceQuality "1"]
[TimeControl "5400+30"]

1. e4 {[%emt 0:01:34]} c5 {[%emt 0:00:00]} 2. Nf3 {[%emt 0:00:08]} e6 {[%emt 0:00:00]} 3. d4 {[%emt 0:00:11]} cxd4 {[%emt 0:00:00]} 4. Nxd4 {[%emt 0:00:05]} Nf6 {[%emt 0:00:22]} 5. Nc3 {[%emt 0:00:11]} d6 {[%emt 0:00:12]} 6. g4 {[%emt 0:00:20]} h6 {[%emt 0:00:08]} 7. h4 {[%emt 0:00:43]} Nc6 {[%emt 0:00:16]} 8. Rg1 {[%emt 0:00:27]} d5 {[%emt 0:00:19]} 9. exd5 {[%emt 0:00:25]} Nxd5 {[%emt 0:00:08]} 10. Nxd5 {[%emt 0:00:21]} Qxd5 {[%emt 0:00:28]} 11. Bg2 {[%emt 0:00:22]} Qa5+ {[%emt 0:08:37]} 12. Bd2 {[%emt 0:02:06]} Qe5+ {[%emt 0:01:46]} 13. Be3 {[%emt 0:00:07]} Bd7 {[%emt 0:09:59]} 14. Nxc6 {[%emt 0:01:49]} Bxc6 {[%emt 0:00:33]} 15. Bxc6+ {[%emt 0:00:13]} bxc6 {[%emt 0:00:06]} 16. Qd4 {[%emt 0:00:17]} Qxd4 {[%emt 0:00:42]} 17. Bxd4 {[%emt 0:00:46]} c5 {[%emt 0:03:18]} 18. Bc3 {[%emt 0:00:16]} Rd8 {[%emt 0:03:04]} 19. Ke2 {[%emt 0:02:30]} Rd5 {[%emt 0:03:05]} 20. Rad1 {[%emt 0:05:43]} f6 {[%emt 0:06:58]} 21. f4 {[%emt 0:06:50]} Bd6 {[%emt 0:05:11]} 22. Kf3 {[%emt 0:13:08]} Kd7 {[%emt 0:04:05]} 23. b3 {[%emt 0:07:21]} Kc6 {[%emt 0:06:18]} 24. Bb2 {[%emt 0:03:03]} Rxd1 {[%emt 0:18:46]} 25. Rxd1 {[%emt 0:00:05]} h5 {[%emt 0:00:04]} 26. Rh1 {[%emt 0:07:48]} a6 {[%emt 0:06:19]} 27. c4 {[%emt 0:03:56]} Kd7 {[%emt 0:01:07]} 28. Rg1 {[%emt 0:02:55]} hxg4+ {[%emt 0:00:53]} 29. Rxg4 {[%emt 0:01:55]} Kc6 {[%emt 0:02:51]} 30. Kg3 {[%emt 0:02:29]} Rh7 {[%emt 0:02:34]} 31. Rg6 {[%emt 0:01:47]} Kd7 {[%emt 0:00:55]} 32. h5 {[%emt 0:14:56]} Ke7 {[%emt 0:00:55]} 33. Rg4 {[%emt 0:00:54]} Kf7 {[%emt 0:03:13]} 34. Rh4 {[%emt 0:00:27]} Rh6 {[%emt 0:01:48]} 35. Rh1 {[%emt 0:04:07]} Be7 {[%emt 0:06:10]} 36. Kg4 {[%emt 0:04:48]} Rh8 {[%emt 0:03:29]} 37. Rg1 {[%emt 0:07:20]} Rd8 {[%emt 0:01:02]} 38. Rg2 {[%emt 0:00:19]} Rd1 {[%emt 0:01:18]} 39. f5 {[%emt 0:01:12]} Re1 {[%emt 0:00:02]} 40. fxe6+ {[%emt 0:00:35]} Kxe6 {[%emt 0:00:02]} 41. Bc3 {[%emt 0:01:20]} Rf1 {[%emt 0:01:01]} 42. Re2+ {[%emt 0:00:47]} Kf7 {[%emt 0:00:01]} 43. Rg2 {[%emt 0:02:58]} Bd6 {[%emt 0:01:09]} 44. Bd2 {[%emt 0:01:47]} f5+ {[%emt 0:00:21]} 45. Kh4 {[%emt 0:00:09]} Be7+ {[%emt 0:00:55]} 46. Kg3 {[%emt 0:00:23]} Rh1 {[%emt 0:00:13]} 47. Kf4 {[%emt 0:01:04]} Rxh5 {[%emt 0:00:06]} 48. Ke5 {[%emt 0:00:15]} g6 {[%emt 0:02:05]} 49. Kd5 {[%emt 0:00:25]} f4+ {[%emt 0:00:27]} 50. Ke4 {[%emt 0:00:41]} g5 {[%emt 0:00:15]} 51. Kf5 {[%emt 0:00:27]} Rh6 {[%emt 0:00:23]} 52. Bc3 {[%emt 0:00:20]} Bf6 {[%emt 0:00:53]} 53. Ba5 {[%emt 0:00:36]} Rh3 {[%emt 0:00:57]} 54. Rd2 {[%emt 0:00:46]} Re3 {[%emt 0:00:18]} 55. Bc7 {[%emt 0:00:26]} Re7 {[%emt 0:00:31]} 56. Bb8 {[%emt 0:00:32]} Rb7 {[%emt 0:00:33]} 57. Bd6 {[%emt 0:00:33]} Rd7 {[%emt 0:00:17]} 58. b4 {[%emt 0:00:07]} cxb4 {[%emt 0:00:20]} 59. c5 {[%emt 0:00:22]} Be7 {[%emt 0:00:21]} 60. Bxf4 {[%emt 0:00:52]} Rxd2 {[%emt 0:01:19]} 61. Bxd2 {[%emt 0:00:02]} Bxc5 {[%emt 0:00:12]} 62. Bxg5 {[%emt 0:00:20]} a5 {[%emt 0:00:07]} 63. Ke5 {[%emt 0:00:25]} a4 {[%emt 0:00:29]} 64. Bc1 {[%emt 0:00:33]} a3 {[%emt 0:00:30]} 65. Kd5 {[%emt 0:00:13]} b3 {[%emt 0:00:14]} 66. axb3 {[%emt 0:00:32]} a2 {[%emt 0:00:05]} 67. Bb2 {[%emt 0:00:05]} Be7 {[%emt 0:00:17]} 1/2-1/2

[Event "Baltic Zonal III Stage 2018"]
[Site "Liepaja"]
[Date "2018.07.13"]
[Round "7"]
[White "Vicas, Marijus"]
[Black "Brazdzionis, Andrius"]
[Result "1/2-1/2"]
[ECO "B07"]
[WhiteElo "2183"]
[BlackElo "2252"]
[Annotator "NA"]
[PlyCount "31"]
[EventDate "2018.07.09"]
[EventType "swiss"]
[EventCountry "LAT"]
[SourceTitle "playchess.com"]
[Source "ChessBase"]
[SourceQuality "1"]
[TimeControl "5400+30"]

1. e4 {[%emt 0:00:00]} d6 {[%emt 0:00:00]} 2. d4 {[%emt 0:00:00]} Nf6 {[%emt 0:00:00]} 3. Nc3 {[%emt 0:00:00]} g6 {[%emt 0:00:00]} 4. Be3 {[%emt 0:00:04]} c6 {[%emt 0:00:05]} 5. Qd2 {[%emt 0:00:05]} Nbd7 {[%emt 0:00:05]} 6. Nf3 {[%emt 0:00:25]} Bg7 {[%emt 0:00:18]} 7. Bh6 {[%emt 0:00:14]} O-O {[%emt 0:00:10]} 8. h4 {[%emt 0:06:58]} e5 {[%emt 0:00:12]} 9. dxe5 {[%emt 0:04:45]} dxe5 {[%emt 0:04:54]} 10. O-O-O {[%emt 0:03:16]} Qe7 {[%emt 0:01:02]} 11. Bxg7 {[%emt 0:06:13]} Kxg7 {[%emt 0:00:05]} 12. Bd3 {[%emt 0:01:36]} Nc5 {[%emt 0:02:43]} 13. Qg5 {[%emt 0:00:45]} Re8 {[%emt 0:00:24]} 14. h5 {[%emt 0:01:44]} h6 {[%emt 0:07:53]} 15. Qg3 {[%emt 0:05:56]} g5 {[%emt 0:01:19]} 16. Kb1 {[%emt 0:09:36]} 1/2-1/2

[Event "Baltic Zonal III Stage 2018"]
[Site "Liepaja"]
[Date "2018.07.14"]
[Round "8"]
[White "Klabis, Rokas"]
[Black "Rogule, Laura"]
[Result "1/2-1/2"]
[ECO "B24"]
[WhiteElo "2347"]
[BlackElo "2320"]
[Annotator "NA"]
[PlyCount "95"]
[EventDate "2018.07.09"]
[EventType "swiss"]
[EventCountry "LAT"]
[SourceTitle "playchess.com"]
[Source "ChessBase"]
[SourceQuality "1"]
[TimeControl "5400+30"]

1. e4 {[%emt 0:00:00]} c5 {[%emt 0:00:00]} 2. Nc3 {[%emt 0:00:00]} Nc6 {[%emt 0:00:09]} 3. Bb5 {[%emt 0:00:01]} g6 {[%emt 0:01:14]} 4. Bxc6 {[%emt 0:03:24]} bxc6 {[%emt 0:05:55]} 5. d4 {[%emt 0:03:55]} Qa5 {[%emt 0:08:33]} 6. Nge2 {[%emt 0:12:39]} Bg7 {[%emt 0:05:23]} 7. Be3 {[%emt 0:10:25]} Nf6 {[%emt 0:04:35]} 8. f3 {[%emt 0:13:15]} cxd4 {[%emt 0:16:46]} 9. Nxd4 {[%emt 0:01:34]} Ba6 {[%emt 0:03:48]} 10. Qd2 {[%emt 0:04:06]} O-O {[%emt 0:11:30]} 11. Nb3 {[%emt 0:03:34]} Qc7 {[%emt 0:02:09]} 12. O-O-O {[%emt 0:02:53]} Rfd8 {[%emt 0:05:22]} 13. Bf4 {[%emt 0:05:17]} d6 {[%emt 0:03:10]} 14. g4 {[%emt 0:05:32]} Bc4 {[%emt 0:05:23]} 15. h4 {[%emt 0:09:02]} a5 {[%emt 0:01:33]} 16. Qh2 {[%emt 0:00:05]} e5 {[%emt 0:04:35]} 17. Bg5 {[%emt 0:06:19]} a4 {[%emt 0:00:37]} 18. Nd2 {[%emt 0:00:12]} Be6 {[%emt 0:00:20]} 19. h5 {[%emt 0:02:44]} Rdb8 {[%emt 0:07:21]} 20. Ndb1 {[%emt 0:02:01]} h6 {[%emt 0:01:13]} 21. Be3 {[%emt 0:02:14]} g5 {[%emt 0:00:18]} 22. Qd2 {[%emt 0:00:13]} Qb7 {[%emt 0:01:10]} 23. b3 {[%emt 0:00:09]} d5 {[%emt 0:03:11]} 24. Bxg5 {[%emt 0:03:43]} axb3 {[%emt 0:01:07]} 25. axb3 {[%emt 0:00:22]} Kh7 {[%emt 0:05:12]} 26. Bxh6 {[%emt 0:03:56]} Bxh6 {[%emt 0:01:06]} 27. g5 {[%emt 0:00:03]} d4 {[%emt 0:01:03]} 28. gxh6 {[%emt 0:00:16]} Rg8 {[%emt 0:00:34]} 29. Na4 {[%emt 0:01:44]} Rxa4 {[%emt 0:00:18]} 30. bxa4 {[%emt 0:00:03]} Rb8 {[%emt 0:00:26]} 31. Qa5 {[%emt 0:02:12]} Qxb1+ {[%emt 0:00:36]} 32. Kd2 {[%emt 0:00:03]} Qa2 {[%emt 0:00:29]} 33. Ra1 {[%emt 0:01:51]} Qc4 {[%emt 0:00:08]} 34. Rab1 {[%emt 0:00:34]} Rxb1 {[%emt 0:01:07]} 35. Rxb1 {[%emt 0:00:04]} Nxh5 {[%emt 0:00:34]} 36. Qb4 {[%emt 0:01:30]} Qa6 {[%emt 0:00:16]} 37. Qf8 {[%emt 0:01:29]} Qxa4 {[%emt 0:00:35]} 38. Rb8 {[%emt 0:00:28]} Qa5+ {[%emt 0:00:22]} 39. Kd1 {[%emt 0:00:11]} Qa1+ {[%emt 0:00:13]} 40. Kd2 {[%emt 0:00:18]} Qc3+ {[%emt 0:00:08]} 41. Kc1 Qa1+ {[%emt 0:00:46]} 42. Kd2 {[%emt 0:00:39]} Qc3+ {[%emt 0:00:40]} 43. Kc1 {[%emt 0:00:03]} Qa1+ {[%emt 0:00:52]} 44. Kd2 Qc3+ 45. Kc1 Qe3+ 46. Kb1 Qxh6 47. Qh8+ Kg6 48. Qg8+ {Kh7 Qf8 Qe3} 1/2-1/2

[Event "Baltic Zonal III Stage 2018"]
[Site "Liepaja"]
[Date "2018.07.14"]
[Round "8"]
[White "Brazdzionis, Andrius"]
[Black "Sirosh, Ilja"]
[Result "1/2-1/2"]
[ECO "D85"]
[WhiteElo "2252"]
[BlackElo "2339"]
[Annotator "NA"]
[PlyCount "92"]
[EventDate "2018.07.09"]
[EventType "swiss"]
[EventCountry "LAT"]
[SourceTitle "playchess.com"]
[Source "ChessBase"]
[SourceQuality "1"]
[TimeControl "5400+30"]

1. d4 {[%emt 0:00:00]} Nf6 {[%emt 0:00:00]} 2. c4 {[%emt 0:00:00]} g6 {[%emt 0:00:00]} 3. Nc3 {[%emt 0:00:00]} d5 {[%emt 0:00:00]} 4. cxd5 {[%emt 0:00:37]} Nxd5 {[%emt 0:00:00]} 5. e4 {[%emt 0:00:03]} Nxc3 {[%emt 0:00:01]} 6. bxc3 {[%emt 0:00:02]} Bg7 {[%emt 0:00:08]} 7. Bg5 {[%emt 0:00:17]} c5 {[%emt 0:02:10]} 8. Rc1 {[%emt 0:00:06]} O-O {[%emt 0:00:54]} 9. Nf3 {[%emt 0:00:05]} Bg4 {[%emt 0:01:41]} 10. d5 {[%emt 0:00:13]} Qd6 {[%emt 0:00:12]} 11. Be2 {[%emt 0:00:07]} Nd7 {[%emt 0:03:00]} 12. O-O {[%emt 0:00:10]} Bxf3 {[%emt 0:14:09]} 13. Bxf3 {[%emt 0:00:13]} b5 {[%emt 0:00:16]} 14. Bg4 {[%emt 0:00:07]} c4 {[%emt 0:15:22]} 15. Bxd7 {[%emt 0:00:10]} Qxd7 {[%emt 0:00:08]} 16. f4 {[%emt 0:00:02]} Rac8 {[%emt 0:06:48]} 17. f5 {[%emt 0:03:43]} a5 {[%emt 0:04:59]} 18. Qe1 {[%emt 0:31:20]} Be5 {[%emt 0:25:17]} 19. Qh4 {[%emt 0:02:52]} f6 {[%emt 0:01:15]} 20. Bd2 {[%emt 0:08:06]} g5 {[%emt 0:03:44]} 21. Qh6 {[%emt 0:01:40]} b4 {[%emt 0:00:55]} 22. h4 {[%emt 0:02:28]} gxh4 {[%emt 0:00:24]} 23. cxb4 {[%emt 0:09:57]} c3 {[%emt 0:01:18]} 24. Bf4 {[%emt 0:00:06]} Bd4+ {[%emt 0:00:35]} 25. Be3 {[%emt 0:00:04]} Qa7 {[%emt 0:01:50]} 26. Bxd4 {[%emt 0:02:28]} Qxd4+ {[%emt 0:00:03]} 27. Kh1 {[%emt 0:01:55]} axb4 {[%emt 0:00:27]} 28. Qxh4 {[%emt 0:04:30]} Kh8 {[%emt 0:00:29]} 29. Rfd1 {[%emt 0:00:29]} Qe5 {[%emt 0:00:57]} 30. d6 {[%emt 0:02:00]} exd6 {[%emt 0:01:16]} 31. Rd5 {[%emt 0:00:12]} Qe7 {[%emt 0:00:04]} 32. Rd4 {[%emt 0:02:36]} Rb8 {[%emt 0:00:44]} 33. Qg3 {[%emt 0:00:21]} Rb6 {[%emt 0:02:34]} 34. Qd3 {[%emt 0:00:33]} Ra8 {[%emt 0:06:50]} 35. Rc2 {[%emt 0:00:29]} Ra5 {[%emt 0:02:15]} 36. Kh2 {[%emt 0:06:27]} Qe5+ {[%emt 0:00:34]} 37. Kh3 {[%emt 0:00:03]} Rc5 {[%emt 0:00:49]} 38. g3 {[%emt 0:01:53]} Kg7 {[%emt 0:00:30]} 39. Kg2 {[%emt 0:01:16]} Qe7 {[%emt 0:02:30]} 40. Qd1 {[%emt 0:00:38]} Re5 {[%emt 0:01:07]} 41. Qd3 {[%emt 0:01:15]} Qb7 {[%emt 0:01:13]} 42. Kh2 {[%emt 0:00:47]} Re7 {[%emt 0:00:38]} 43. Qf3 {[%emt 0:01:50]} Kh8 {[%emt 0:00:56]} 44. Qd3 {[%emt 0:00:55]} Kg7 {[%emt 0:01:28]} 45. Qf3 {[%emt 0:00:03]} Kg8 {[%emt 0:01:06]} 46. Qd3 {[%emt 0:01:34]} Kg7 {[%emt 0:00:43]} 1/2-1/2

[Event "Baltic Zonal III Stage 2018"]
[Site "Liepaja"]
[Date "2018.07.14"]
[Round "8"]
[White "Pedoson, Georg Aleksander"]
[Black "Chukavin, Kirill"]
[Result "0-1"]
[ECO "D35"]
[WhiteElo "2176"]
[BlackElo "2303"]
[Annotator "NA"]
[PlyCount "70"]
[EventDate "2018.07.09"]
[EventType "swiss"]
[EventCountry "LAT"]
[SourceTitle "playchess.com"]
[Source "ChessBase"]
[SourceQuality "1"]
[TimeControl "5400+30"]

1. c4 {[%emt 0:00:00]} e6 {[%emt 0:00:00]} 2. Nc3 {[%emt 0:00:00]} d5 {[%emt 0:00:18]} 3. d4 {[%emt 0:00:11]} Nf6 {[%emt 0:00:18]} 4. cxd5 {[%emt 0:01:14]} exd5 {[%emt 0:00:15]} 5. Bg5 {[%emt 0:00:05]} c6 {[%emt 0:00:53]} 6. e3 {[%emt 0:00:06]} Bf5 {[%emt 0:02:20]} 7. Bd3 {[%emt 0:02:09]} Bxd3 {[%emt 0:01:02]} 8. Qxd3 {[%emt 0:00:07]} Nbd7 {[%emt 0:01:06]} 9. Nge2 {[%emt 0:00:28]} Bd6 {[%emt 0:06:09]} 10. Ng3 {[%emt 0:06:17]} g6 {[%emt 0:09:06]} 11. O-O {[%emt 0:05:59]} h6 {[%emt 0:09:17]} 12. Bf4 {[%emt 0:01:03]} Qc7 {[%emt 0:05:03]} 13. Bxd6 {[%emt 0:02:51]} Qxd6 {[%emt 0:00:08]} 14. e4 {[%emt 0:00:09]} dxe4 {[%emt 0:02:06]} 15. Ngxe4 {[%emt 0:00:30]} Qc7 {[%emt 0:14:44]} 16. d5 {[%emt 0:08:54]} O-O {[%emt 0:03:18]} 17. d6 {[%emt 0:02:14]} Qb6 {[%emt 0:01:06]} 18. Rad1 {[%emt 0:01:55]} Rad8 {[%emt 0:01:10]} 19. Rd2 {[%emt 0:03:30]} Kg7 {[%emt 0:00:59]} 20. h3 {[%emt 0:03:47]} Rfe8 {[%emt 0:00:43]} 21. Rfd1 {[%emt 0:04:02]} Re6 {[%emt 0:00:48]} 22. Nxf6 {[%emt 0:05:47]} Nxf6 {[%emt 0:00:53]} 23. Qc4 {[%emt 0:00:13]} Qa5 {[%emt 0:06:49]} 24. b4 {[%emt 0:01:45]} Qg5 {[%emt 0:02:30]} 25. Rd4 {[%emt 0:14:42]} Qe5 {[%emt 0:03:47]} 26. Qd3 {[%emt 0:03:55]} b6 {[%emt 0:01:58]} 27. Qd2 {[%emt 0:03:35]} Rd7 28. a4 {[%emt 0:05:32]} Ne8 {[%emt 0:10:52]} 29. Ne4 {[%emt 0:03:35]} c5 {[%emt 0:00:51]} 30. bxc5 {[%emt 0:00:04]} bxc5 {[%emt 0:00:07]} 31. Rc4 {[%emt 0:00:19]} Nxd6 {[%emt 0:00:39]} 32. Nxc5 {[%emt 0:00:18]} Ree7 {[%emt 0:10:30]} 33. Nxd7 {[%emt 0:10:17]} Nxc4 {[%emt 0:00:06]} 34. Nxe5 {[%emt 0:04:32]} Nxd2 {[%emt 0:00:05]} 35. Nxg6 {[%emt 0:00:04]} Rd7 {[%emt 0:00:24]} 0-1

[Event "Baltic Zonal III Stage 2018"]
[Site "Liepaja"]
[Date "2018.07.15"]
[Round "9"]
[White "Kanep, Meelis"]
[Black "Brazdzionis, Andrius"]
[Result "1/2-1/2"]
[ECO "A05"]
[WhiteElo "2440"]
[BlackElo "2252"]
[Annotator "NA"]
[PlyCount "57"]
[EventDate "2018.07.09"]
[EventType "swiss"]
[EventCountry "LAT"]
[SourceTitle "playchess.com"]
[Source "ChessBase"]
[SourceQuality "1"]
[TimeControl "5400+30"]

1. Nf3 {[%emt 0:01:28]} Nf6 {[%emt 0:00:00]} 2. c4 {[%emt 0:00:29]} e6 {[%emt 0:00:00]} 3. g3 {[%emt 0:00:47]} d5 {[%emt 0:00:38]} 4. d4 {[%emt 0:00:56]} Bb4+ {[%emt 0:00:14]} 5. Bd2 {[%emt 0:00:33]} Be7 {[%emt 0:00:08]} 6. Bg2 {[%emt 0:00:40]} O-O {[%emt 0:00:08]} 7. O-O {[%emt 0:00:43]} Nbd7 {[%emt 0:00:06]} 8. Qb3 {[%emt 0:04:19]} c6 {[%emt 0:11:41]} 9. Nc3 {[%emt 0:01:39]} b6 {[%emt 0:05:04]} 10. Bf4 {[%emt 0:06:48]} Nh5 {[%emt 0:00:21]} 11. Bc1 {[%emt 0:03:00]} Nhf6 {[%emt 0:00:36]} 12. Rd1 {[%emt 0:04:09]} Bb7 {[%emt 0:01:16]} 13. cxd5 {[%emt 0:01:40]} cxd5 {[%emt 0:00:43]} 14. Bf4 {[%emt 0:02:31]} Nh5 {[%emt 0:00:07]} 15. Bd2 {[%emt 0:07:14]} Nhf6 {[%emt 0:00:18]} 16. a4 {[%emt 0:02:37]} a6 {[%emt 0:06:41]} 17. Be1 {[%emt 0:00:34]} Bd6 {[%emt 0:10:45]} 18. Nd2 {[%emt 0:02:41]} Qb8 {[%emt 0:05:39]} 19. e3 {[%emt 0:01:57]} Rd8 {[%emt 0:04:11]} 20. h3 {[%emt 0:05:43]} Qa7 {[%emt 0:00:24]} 21. f4 {[%emt 0:02:16]} Rac8 {[%emt 0:01:48]} 22. g4 {[%emt 0:02:52]} Qa8 {[%emt 0:03:38]} 23. Bh4 {[%emt 0:02:16]} Re8 {[%emt 0:00:14]} 24. Rdc1 {[%emt 0:14:02]} Ne4 {[%emt 0:03:38]} 25. Ndxe4 {[%emt 0:00:06]} dxe4 {[%emt 0:00:04]} 26. Qa2 {[%emt 0:03:50]} Bb4 {[%emt 0:00:58]} 27. Qb3 {[%emt 0:00:27]} Bd6 {[%emt 0:00:06]} 28. Qa2 {[%emt 0:00:23]} Bb4 {[%emt 0:00:05]} 29. Qb3 {[%emt 0:00:24]} 1/2-1/2

[Event "Baltic Zonal III Stage 2018"]
[Site "Liepaja"]
[Date "2018.07.15"]
[Round "9"]
[White "Malisauskas, Vidmantas"]
[Black "Kulaots, Kaido"]
[Result "1-0"]
[ECO "A04"]
[WhiteElo "2432"]
[BlackElo "2555"]
[Annotator "RC"]
[PlyCount "95"]
[EventDate "2018.07.09"]
[EventType "swiss"]
[EventCountry "LAT"]
[SourceTitle "playchess.com"]
[Source "ChessBase"]
[SourceQuality "1"]
[TimeControl "5400+30"]

1. Nf3 {[%emt 0:08:30]} c5 {[%emt 0:01:31]} 2. c4 {[%emt 0:06:33]} Nc6 {[%emt 0:00:25]} 3. Nc3 {[%emt 0:01:25]} Nd4 {[%emt 0:00:48]} 4. e3 {[%emt 0:00:40]} Nxf3+ {[%emt 0:00:07]} 5. Qxf3 {[%emt 0:00:10]} g6 {[%emt 0:00:17]} 6. g3 {[%emt 0:00:20]} Bg7 {[%emt 0:00:14]} 7. Bg2 {[%emt 0:00:07]} d6 {[%emt 0:01:43]} 8. O-O {[%emt 0:07:36]} Nf6 {[%emt 0:00:13]} 9. d4 {[%emt 0:00:57]} O-O {[%emt 0:03:23]} 10. dxc5 {[%emt 0:00:08]} dxc5 {[%emt 0:00:41]} 11. Rd1 {[%emt 0:08:54]} Qb6 {[%emt 0:01:03]} 12. h3 {[%emt 0:00:29]} Rd8 {[%emt 0:16:05]} 13. Na4 {[%emt 0:21:18]} Rxd1+ {[%emt 0:01:47]} 14. Qxd1 {[%emt 0:02:03]} Qc7 {[%emt 0:03:12]} 15. Qb3 {[%emt 0:06:30]} Rb8 {[%emt 0:14:19]} 16. Nc3 {[%emt 0:01:21]} a6 {[%emt 0:06:05]} 17. a4 {[%emt 0:02:34]} e6 {[%emt 0:07:04]} 18. Bd2 {[%emt 0:04:46]} Bd7 {[%emt 0:00:39]} 19. Rd1 {[%emt 0:00:10]} Bc6 {[%emt 0:01:00]} 20. Be1 {[%emt 0:00:13]} Bxg2 {[%emt 0:01:03]} 21. Kxg2 {[%emt 0:00:06]} Qc6+ {[%emt 0:01:26]} 22. f3 {[%emt 0:02:57]} h5 {[%emt 0:02:09]} 23. Qc2 {[%emt 0:00:33]} g5 {[%emt 0:07:49]} 24. e4 {[%emt 0:00:36]} g4 {[%emt 0:04:33]} 25. hxg4 {[%emt 0:00:08]} hxg4 {[%emt 0:00:02]} 26. f4 {[%emt 0:00:33]} Ne8 {[%emt 0:00:46]} 27. Kh2 {[%emt 0:09:41]} Nd6 {[%emt 0:03:34]} 28. e5 {[%emt 0:01:14]} Nxc4 {[%emt 0:05:49]} 29. Qe2 {[%emt 0:00:10]} b5 {[%emt 0:01:21]} 30. axb5 {[%emt 0:00:07]} axb5 {[%emt 0:00:03]} 31. Ne4 {[%emt 0:00:37]} Qa8 {[%emt 0:07:05]} 32. b3 {[%emt 0:03:08]} Nb6 {[%emt 0:00:40]} 33. Nxc5 {[%emt 0:00:11]} Nd5 {[%emt 0:01:04]} 34. Rc1 {[%emt 0:03:34]} Rc8 {[%emt 0:01:01]} 35. Bf2 {[%emt 0:02:10]} b4 {[%emt 0:03:16]} 36. Rc4 {[%emt 0:01:01]} Nc3 {[%emt 0:00:47]} 37. Qxg4 {[%emt 0:00:55]} Rd8 {[%emt 0:01:02]} 38. Nxe6 {[%emt 0:01:43]} fxe6 {[%emt 0:01:08]} 39. Qxe6+ {[%emt 0:00:08]} Kh8 {[%emt 0:02:16]} 40. f5 {[%emt 0:00:54]} Ne4 {[%emt 0:01:00]} 41. f6 {[%emt 0:01:20]} Bh6 {[%emt 0:01:23]} 42. Qh3 {[%emt 0:00:35]} Kh7 {[%emt 0:00:29]} 43. Qf5+ {[%emt 0:00:09]} Kh8 {[%emt 0:00:05]} 44. Qg6 {[%emt 0:01:11]} Rd7 {[%emt 0:00:48]} 45. Rxe4 {[%emt 0:01:23]} Bg5 {[%emt 0:00:35]} 46. e6 {[%emt 0:01:01]} Rh7+ {[%emt 0:00:22]} 47. Kg2 {[%emt 0:00:31]} Qc6 {[%emt 0:00:44]} 48. e7 {[%emt 0:00:48]} 1-0

[Event "Baltic Zonal III Stage 2018"]
[Site "Liepaja"]
[Date "2018.07.15"]
[Round "9"]
[White "Pultinevicius, Paulius"]
[Black "Ladva, Ottomar"]
[Result "0-1"]
[ECO "A10"]
[WhiteElo "2422"]
[BlackElo "2498"]
[Annotator "RC"]
[PlyCount "114"]
[EventDate "2018.07.09"]
[EventType "swiss"]
[EventCountry "LAT"]
[SourceTitle "playchess.com"]
[Source "ChessBase"]
[SourceQuality "1"]
[TimeControl "5400+30"]

1. c4 {[%emt 0:00:00]} b6 {[%emt 0:07:35]} 2. d4 {[%emt 0:01:12]} Bb7 {[%emt 0:01:36]} 3. Nc3 {[%emt 0:00:36]} Nf6 {[%emt 0:00:04]} 4. Nf3 {[%emt 0:02:59]} g6 {[%emt 0:00:22]} 5. Qc2 {[%emt 0:00:16]} Bg7 {[%emt 0:00:33]} 6. e4 {[%emt 0:01:21]} d6 {[%emt 0:00:05]} 7. Be2 {[%emt 0:01:25]} O-O {[%emt 0:00:07]} 8. O-O {[%emt 0:00:09]} Nbd7 {[%emt 0:00:31]} 9. Rd1 {[%emt 0:05:00]} e6 {[%emt 0:02:06]} 10. h3 {[%emt 0:14:41]} Qe7 {[%emt 0:01:35]} 11. e5 {[%emt 0:03:33]} Ne8 {[%emt 0:01:41]} 12. Bg5 {[%emt 0:03:07]} f6 {[%emt 0:00:02]} 13. Bh4 {[%emt 0:00:17]} g5 {[%emt 0:07:52]} 14. exf6 {[%emt 0:01:24]} Bxf6 {[%emt 0:00:04]} 15. Bg3 {[%emt 0:00:12]} Ng7 {[%emt 0:05:20]} 16. Bh2 {[%emt 0:12:10]} Nf5 {[%emt 0:07:20]} 17. d5 {[%emt 0:00:50]} Bxc3 {[%emt 0:05:03]} 18. bxc3 {[%emt 0:08:56]} e5 {[%emt 0:00:34]} 19. Nd2 {[%emt 0:04:06]} Nc5 {[%emt 0:01:36]} 20. Nb3 {[%emt 0:01:00]} Nd7 {[%emt 0:10:10]} 21. Bg4 {[%emt 0:01:46]} Qf7 {[%emt 0:00:56]} 22. Rd3 {[%emt 0:02:02]} Ng7 {[%emt 0:06:23]} 23. Re1 {[%emt 0:17:29]} Nf6 {[%emt 0:02:04]} 24. Bd1 {[%emt 0:00:08]} Ba6 {[%emt 0:03:01]} 25. Nd2 {[%emt 0:04:42]} Nxd5 {[%emt 0:00:19]} 26. Bf3 {[%emt 0:02:57]} Ne7 {[%emt 0:00:59]} 27. Rf1 {[%emt 0:02:23]} Rab8 {[%emt 0:01:21]} 28. Qa4 {[%emt 0:00:07]} Bb7 {[%emt 0:00:27]} 29. Qxa7 {[%emt 0:00:44]} Qg6 {[%emt 0:00:57]} 30. Re3 {[%emt 0:00:47]} Bxf3 {[%emt 0:00:52]} 31. Rxf3 {[%emt 0:01:12]} Ne6 {[%emt 0:00:07]} 32. Rxf8+ {[%emt 0:03:13]} Rxf8 {[%emt 0:00:03]} 33. Qa4 {[%emt 0:01:30]} Nc5 {[%emt 0:00:19]} 34. Qd1 {[%emt 0:01:48]} Qd3 {[%emt 0:00:11]} 35. Qc1 {[%emt 0:00:04]} Ng6 {[%emt 0:01:13]} 36. Nb3 {[%emt 0:01:33]} Ne6 {[%emt 0:00:23]} 37. c5 {[%emt 0:01:50]} bxc5 {[%emt 0:01:17]} 38. Rd1 {[%emt 0:00:14]} Qc4 {[%emt 0:00:39]} 39. Qe3 {[%emt 0:00:37]} Ra8 {[%emt 0:00:56]} 40. Nd2 {[%emt 0:00:15]} Qxa2 {[%emt 0:00:26]} 41. Ne4 {[%emt 0:00:05]} Rf8 {[%emt 0:00:38]} 42. Bg3 {[%emt 0:00:54]} Ngf4 {[%emt 0:00:29]} 43. Rd2 {[%emt 0:00:30]} Qb1+ {[%emt 0:00:28]} 44. Kh2 {[%emt 0:00:04]} Ra8 {[%emt 0:02:58]} 45. Bxf4 {[%emt 0:01:51]} gxf4 {[%emt 0:00:30]} 46. Nf6+ {[%emt 0:00:29]} Kf7 {[%emt 0:00:18]} 47. Qe4 {[%emt 0:00:18]} Qxe4 {[%emt 0:00:50]} 48. Nxe4 {[%emt 0:00:04]} Kg6 {[%emt 0:00:28]} 49. h4 {[%emt 0:00:03]} Ra4 {[%emt 0:00:51]} 50. f3 {[%emt 0:00:04]} h5 {[%emt 0:00:35]} 51. Rd1 {[%emt 0:00:31]} Ra2 {[%emt 0:00:13]} 52. Kh3 {[%emt 0:00:33]} Rc2 {[%emt 0:00:41]} 53. Kh2 {[%emt 0:01:43]} Ng7 {[%emt 0:01:02]} 54. Ra1 {[%emt 0:00:27]} Nf5 {[%emt 0:00:13]} 55. Ra7 {[%emt 0:00:04]} Nxh4 {[%emt 0:00:12]} 56. Kh3 {[%emt 0:00:02]} Nxg2 {[%emt 0:00:27]} 57. Rxc7 {[%emt 0:00:37]} Ne1 {[%emt 0:00:20]} 0-1